[Event "*** SCC Grand Prix: Titled Tuesday Blitz"]
[Site "Chess.com"]
[Date "2020.07.07"]
[Round "4"]
[White "FedaMaster"]
[Black "Mbneu"]
[Result "1-0"]
[WhiteElo "2435"]
[BlackElo "2251"]
[TimeControl "180+1"]
[EndTime "10:37:21 PDT"]
[Termination "FedaMaster won by resignation"]

1. e4 {[%clk 0:03:00.9]} 1... c5 {[%clk 0:02:52.4]} 2. d4 {[%clk 0:03:00]} 2...
cxd4 {[%clk 0:02:51.2]} 3. c3 {[%clk 0:03:00.6]} 3... Nf6 {[%clk 0:02:51.7]} 4.
e5 {[%clk 0:02:59.5]} 4... Nd5 {[%clk 0:02:51.6]} 5. Qxd4 {[%clk 0:03:00.4]}
5... e6 {[%clk 0:02:51.1]} 6. Nf3 {[%clk 0:03:01.3]} 6... Nc6 {[%clk 0:02:51.2]}
7. Qe4 {[%clk 0:03:01.9]} 7... f5 {[%clk 0:02:51.5]} 8. Qe2 {[%clk 0:03:01.9]}
8... Be7 {[%clk 0:02:48.6]} 9. c4 {[%clk 0:03:01.5]} 9... Nc7 {[%clk 0:02:45.7]}
10. g3 {[%clk 0:03:02.4]} 10... a6 {[%clk 0:02:41.1]} 11. Bg2 {[%clk 0:03:02.8]}
11... b5 {[%clk 0:02:41.6]} 12. O-O {[%clk 0:02:57.6]} 12... Bb7 {[%clk
0:02:39.9]} 13. Nc3 {[%clk 0:02:52.3]} 13... b4 {[%clk 0:02:35.4]} 14. Na4
{[%clk 0:02:51.6]} 14... a5 {[%clk 0:02:27.8]} 15. Rd1 {[%clk 0:02:49.7]} 15...
Na6 {[%clk 0:02:24.9]} 16. Be3 {[%clk 0:02:43.1]} 16... O-O {[%clk 0:02:22.8]}
17. Nb6 {[%clk 0:02:42.5]} 17... f4 {[%clk 0:01:57.6]} 18. gxf4 {[%clk
0:02:35.8]} 18... Bc5 {[%clk 0:01:48.7]} 19. Nxd7 {[%clk 0:02:23.1]} 19... Bxe3
{[%clk 0:01:48.1]} 20. fxe3 {[%clk 0:02:07.8]} 20... Rf7 {[%clk 0:01:43.8]} 21.
Nf6+ {[%clk 0:02:07.1]} 21... gxf6 {[%clk 0:01:43.5]} 22. Rxd8+ {[%clk
0:02:07.6]} 22... Rxd8 {[%clk 0:01:39.5]} 23. exf6 {[%clk 0:02:05]} 23... Nc5
{[%clk 0:01:36.8]} 24. Ne5 {[%clk 0:01:56.8]} 24... Nxe5 {[%clk 0:01:36.3]} 25.
fxe5 {[%clk 0:01:53.8]} 25... Bxg2 {[%clk 0:01:34]} 26. Qxg2+ {[%clk 0:01:47.7]}
26... Kh8 {[%clk 0:01:33.1]} 27. Kh1 {[%clk 0:01:40.6]} 27... Rg8 {[%clk
0:01:26.2]} 28. Qe2 {[%clk 0:01:30.2]} 28... Rg5 {[%clk 0:01:23.1]} 29. Rg1
{[%clk 0:01:27.2]} 29... Rxg1+ {[%clk 0:01:14.7]} 30. Kxg1 {[%clk 0:01:28.1]}
30... Ne4 {[%clk 0:01:14.2]} 1-0

[Event "*** SCC Grand Prix: Titled Tuesday Blitz"]
[Site "Chess.com"]
[Date "2020.07.07"]
[Round "4"]
[White "Roza_Idrisova"]
[Black "2346PL"]
[Result "1-0"]
[WhiteElo "2223"]
[BlackElo "2397"]
[TimeControl "180+1"]
[EndTime "10:37:22 PDT"]
[Termination "Roza_Idrisova won by resignation"]

1. d4 {[%clk 0:03:00.9]} 1... f5 {[%clk 0:02:59.8]} 2. Nf3 {[%clk 0:03:00.7]}
2... Nf6 {[%clk 0:03:00.3]} 3. g3 {[%clk 0:02:59.9]} 3... g6 {[%clk 0:03:00.9]}
4. Bg2 {[%clk 0:02:59.4]} 4... Bg7 {[%clk 0:03:01.6]} 5. O-O {[%clk 0:02:59.5]}
5... O-O {[%clk 0:03:02.2]} 6. c4 {[%clk 0:02:59]} 6... d6 {[%clk 0:03:02.7]} 7.
Nc3 {[%clk 0:02:59]} 7... Qe8 {[%clk 0:03:03.3]} 8. d5 {[%clk 0:02:55.1]} 8...
Na6 {[%clk 0:03:01.9]} 9. Rb1 {[%clk 0:02:54.4]} 9... c5 {[%clk 0:03:00.1]} 10.
dxc6 {[%clk 0:02:51.1]} 10... bxc6 {[%clk 0:03:00.4]} 11. e4 {[%clk 0:02:45.7]}
11... Nxe4 {[%clk 0:02:58.8]} 12. Nxe4 {[%clk 0:02:45]} 12... fxe4 {[%clk
0:02:59.1]} 13. Ng5 {[%clk 0:02:44.1]} 13... Nc5 {[%clk 0:02:54.5]} 14. Nxe4
{[%clk 0:02:42.1]} 14... Bf5 {[%clk 0:02:38.9]} 15. Re1 {[%clk 0:02:39.6]} 15...
Nxe4 {[%clk 0:02:31.7]} 16. Bxe4 {[%clk 0:02:38.8]} 16... Qf7 {[%clk 0:02:32.6]}
17. Bxf5 {[%clk 0:02:20.2]} 17... Qxf5 {[%clk 0:02:32.1]} 18. Be3 {[%clk
0:02:18.7]} 18... d5 {[%clk 0:02:20.9]} 19. cxd5 {[%clk 0:02:18.1]} 19... cxd5
{[%clk 0:02:21.1]} 20. Rc1 {[%clk 0:02:12.5]} 20... e5 {[%clk 0:02:20.7]} 21.
Qxd5+ {[%clk 0:02:09.9]} 21... Kh8 {[%clk 0:02:20.1]} 22. Red1 {[%clk
0:02:04.3]} 22... h5 {[%clk 0:02:15.1]} 23. h4 {[%clk 0:02:02.9]} 23... Rab8
{[%clk 0:02:06.4]} 24. b3 {[%clk 0:02:01.9]} 24... a6 {[%clk 0:02:04.1]} 25. Rc7
{[%clk 0:01:57.2]} 25... Bf6 {[%clk 0:01:38.9]} 26. Qd7 {[%clk 0:01:52.8]} 26...
Qxd7 {[%clk 0:01:37.4]} 27. Rdxd7 {[%clk 0:01:51.7]} 27... Ra8 {[%clk
0:01:25.1]} 28. Kf1 {[%clk 0:01:45]} 28... Kg8 {[%clk 0:01:25.2]} 29. Ke2 {[%clk
0:01:44.2]} 29... a5 {[%clk 0:01:21.2]} 30. Rb7 {[%clk 0:01:39.6]} 30... Rfc8
{[%clk 0:01:19.6]} 31. Rdc7 {[%clk 0:01:37.4]} 31... Rd8 {[%clk 0:01:19.3]} 32.
Rc6 {[%clk 0:01:34.1]} 32... Bg7 {[%clk 0:01:17.6]} 33. Rxg6 {[%clk 0:01:32.8]}
1-0

[Event "*** SCC Grand Prix: Titled Tuesday Blitz"]
[Site "Chess.com"]
[Date "2020.07.07"]
[Round "4"]
[White "stoleriu"]
[Black "ZEN-22"]
[Result "1-0"]
[WhiteElo "2589"]
[BlackElo "2399"]
[TimeControl "180+1"]
[EndTime "10:37:35 PDT"]
[Termination "stoleriu won by resignation"]

1. e4 {[%clk 0:03:00.9]} 1... e5 {[%clk 0:02:24.1]} 2. Nf3 {[%clk 0:03:00.2]}
2... Nc6 {[%clk 0:02:18.2]} 3. Bb5 {[%clk 0:03:00.8]} 3... f5 {[%clk 0:02:18.6]}
4. d3 {[%clk 0:03:00.2]} 4... Nf6 {[%clk 0:02:17.6]} 5. O-O {[%clk 0:03:00.4]}
5... fxe4 {[%clk 0:02:15.4]} 6. dxe4 {[%clk 0:03:01.3]} 6... Bd6 {[%clk
0:02:15]} 7. Nbd2 {[%clk 0:02:58.3]} 7... a6 {[%clk 0:02:06.3]} 8. Bxc6 {[%clk
0:02:44.8]} 8... dxc6 {[%clk 0:02:05.8]} 9. Nc4 {[%clk 0:02:45.7]} 9... Qe7
{[%clk 0:02:05.6]} 10. Bg5 {[%clk 0:02:41.4]} 10... O-O {[%clk 0:02:03.6]} 11.
h3 {[%clk 0:02:37.9]} 11... h6 {[%clk 0:02:03.4]} 12. Bh4 {[%clk 0:02:37.6]}
12... g5 {[%clk 0:02:00]} 13. Bg3 {[%clk 0:02:36.5]} 13... Nxe4 {[%clk
0:01:59.9]} 14. Bxe5 {[%clk 0:02:35.5]} 14... Be6 {[%clk 0:01:30.6]} 15. Nxd6
{[%clk 0:02:18.1]} 15... cxd6 {[%clk 0:01:29.8]} 16. Re1 {[%clk 0:02:18.8]}
16... Bd5 {[%clk 0:01:18.5]} 17. c4 {[%clk 0:02:16.1]} 17... Bxc4 {[%clk
0:01:09.7]} 18. Rxe4 {[%clk 0:02:15]} 18... Bd5 {[%clk 0:01:05.9]} 19. Re3
{[%clk 0:02:05.1]} 19... dxe5 {[%clk 0:01:05.5]} 20. Nxe5 {[%clk 0:02:04.7]}
20... Qf6 {[%clk 0:01:04.9]} 21. Qc2 {[%clk 0:02:01.2]} 21... Rad8 {[%clk
0:00:51.1]} 22. Rae1 {[%clk 0:01:49.3]} 22... Qg7 {[%clk 0:00:49.9]} 23. Ng6
{[%clk 0:01:46.8]} 23... Rf6 {[%clk 0:00:39.4]} 24. Re8+ {[%clk 0:01:45.1]}
24... Rxe8 {[%clk 0:00:37.9]} 25. Rxe8+ {[%clk 0:01:46]} 1-0

[Event "*** SCC Grand Prix: Titled Tuesday Blitz"]
[Site "Chess.com"]
[Date "2020.07.07"]
[Round "4"]
[White "VovenRogel"]
[Black "PSvidler"]
[Result "1/2-1/2"]
[WhiteElo "2712"]
[BlackElo "2995"]
[TimeControl "180+1"]
[EndTime "10:37:40 PDT"]
[Termination "Game drawn by repetition"]

1. d4 {[%clk 0:03:00.9]} 1... Nf6 {[%clk 0:02:59.1]} 2. c4 {[%clk 0:03:00.2]}
2... g6 {[%clk 0:02:59.2]} 3. Nc3 {[%clk 0:02:59.6]} 3... d5 {[%clk 0:02:59.4]}
4. cxd5 {[%clk 0:02:59.5]} 4... Nxd5 {[%clk 0:03:00.2]} 5. e4 {[%clk 0:03:00.4]}
5... Nxc3 {[%clk 0:03:00.7]} 6. bxc3 {[%clk 0:03:01.3]} 6... Bg7 {[%clk
0:03:01.2]} 7. Bc4 {[%clk 0:03:01.3]} 7... c5 {[%clk 0:03:01.1]} 8. Ne2 {[%clk
0:03:01.5]} 8... Nc6 {[%clk 0:03:01.8]} 9. Be3 {[%clk 0:03:01.5]} 9... O-O
{[%clk 0:03:02.4]} 10. h4 {[%clk 0:02:57.6]} 10... cxd4 {[%clk 0:02:58.8]} 11.
cxd4 {[%clk 0:02:57.2]} 11... Qa5+ {[%clk 0:02:59.4]} 12. Kf1 {[%clk 0:02:57.3]}
12... Rd8 {[%clk 0:02:47]} 13. h5 {[%clk 0:02:56.5]} 13... Ne5 {[%clk
0:02:40.2]} 14. Bd2 {[%clk 0:02:28.4]} 14... Qc7 {[%clk 0:02:35.8]} 15. Bb3
{[%clk 0:02:27.3]} 15... Nc4 {[%clk 0:02:17.3]} 16. hxg6 {[%clk 0:02:26.4]}
16... hxg6 {[%clk 0:02:16.5]} 17. Bf4 {[%clk 0:02:10.1]} 17... e5 {[%clk
0:02:09.6]} 18. Bg5 {[%clk 0:02:09.5]} 18... Rxd4 {[%clk 0:02:08.2]} 19. Nxd4
{[%clk 0:02:07.6]} 19... exd4 {[%clk 0:02:09.1]} 20. Bh6 {[%clk 0:01:55.9]}
20... Be5 {[%clk 0:02:01.7]} 21. g3 {[%clk 0:01:37.7]} 21... b5 {[%clk
0:02:00.2]} 22. a4 {[%clk 0:01:33.1]} 22... Bb7 {[%clk 0:01:56.8]} 23. Rh4
{[%clk 0:01:31.3]} 23... a6 {[%clk 0:01:50.6]} 24. axb5 {[%clk 0:01:29.9]} 24...
axb5 {[%clk 0:01:50.5]} 25. Rxa8+ {[%clk 0:01:30.8]} 25... Bxa8 {[%clk
0:01:51.4]} 26. Bf4 {[%clk 0:01:28.6]} 26... Qc5 {[%clk 0:01:43.6]} 27. Bxe5
{[%clk 0:01:20.5]} 27... Qxe5 {[%clk 0:01:43.4]} 28. Bxc4 {[%clk 0:01:14.5]}
28... bxc4 {[%clk 0:01:43.1]} 29. Qa4 {[%clk 0:01:14.7]} 29... Bxe4 {[%clk
0:01:37.1]} 30. Qxc4 {[%clk 0:01:14.9]} 30... Kg7 {[%clk 0:01:34.9]} 31. Qe2
{[%clk 0:01:10.6]} 31... Bg2+ {[%clk 0:01:32.9]} 32. Ke1 {[%clk 0:01:08.6]}
32... Qa5+ {[%clk 0:01:32.8]} 33. Qd2 {[%clk 0:01:07.9]} 33... Qa1+ {[%clk
0:01:32.9]} 34. Qd1 {[%clk 0:01:06.3]} 34... Qc3+ {[%clk 0:01:32.6]} 35. Qd2
{[%clk 0:01:06.5]} 35... Qa1+ {[%clk 0:01:32.5]} 36. Qd1 {[%clk 0:01:06.7]}
36... Qc3+ {[%clk 0:01:33.2]} 37. Qd2 {[%clk 0:01:06.8]} 37... Qa1+ {[%clk
0:01:34.1]} 1/2-1/2

[Event "*** SCC Grand Prix: Titled Tuesday Blitz"]
[Site "Chess.com"]
[Date "2020.07.07"]
[Round "4"]
[White "Sven_Tica"]
[Black "Sam_ChessMood"]
[Result "1/2-1/2"]
[WhiteElo "2645"]
[BlackElo "2839"]
[TimeControl "180+1"]
[EndTime "10:37:41 PDT"]
[Termination "Game drawn by repetition"]

1. d4 {[%clk 0:03:00.9]} 1... Nf6 {[%clk 0:02:59.6]} 2. c4 {[%clk 0:03:01.1]}
2... e6 {[%clk 0:02:59.7]} 3. g3 {[%clk 0:03:01.4]} 3... d5 {[%clk 0:02:59.3]}
4. Bg2 {[%clk 0:03:02.1]} 4... Bb4+ {[%clk 0:02:58.5]} 5. Bd2 {[%clk 0:03:01.9]}
5... Be7 {[%clk 0:02:58]} 6. Nf3 {[%clk 0:03:01.2]} 6... O-O {[%clk 0:02:57.9]}
7. O-O {[%clk 0:03:01.4]} 7... Nbd7 {[%clk 0:02:57.5]} 8. Qc2 {[%clk 0:03:01.2]}
8... Ne4 {[%clk 0:02:57.2]} 9. Bf4 {[%clk 0:03:00.1]} 9... c6 {[%clk 0:02:57.2]}
10. h4 {[%clk 0:03:00.4]} 10... f5 {[%clk 0:02:54.5]} 11. Nc3 {[%clk 0:02:58.8]}
11... h6 {[%clk 0:02:33.4]} 12. Nxe4 {[%clk 0:02:58.4]} 12... fxe4 {[%clk
0:02:32.2]} 13. Ne5 {[%clk 0:02:59]} 13... Nxe5 {[%clk 0:02:25.9]} 14. Bxe5
{[%clk 0:02:59.9]} 14... Bd6 {[%clk 0:02:26.4]} 15. f3 {[%clk 0:02:57.5]} 15...
Bxe5 {[%clk 0:02:04.2]} 16. dxe5 {[%clk 0:02:58.4]} 16... Bd7 {[%clk 0:01:27.3]}
17. fxe4 {[%clk 0:02:48.7]} 17... d4 {[%clk 0:01:27.5]} 18. Rad1 {[%clk
0:02:33.4]} 18... c5 {[%clk 0:01:25.3]} 19. e3 {[%clk 0:02:30.5]} 19... Qc7
{[%clk 0:01:17.4]} 20. exd4 {[%clk 0:02:23.9]} 20... cxd4 {[%clk 0:01:17.8]} 21.
Rxf8+ {[%clk 0:02:23]} 21... Rxf8 {[%clk 0:01:17]} 22. Qd2 {[%clk 0:02:16.9]}
22... Qxe5 {[%clk 0:00:52.5]} 23. Qxd4 {[%clk 0:02:16.7]} 23... Qxg3 {[%clk
0:00:52.5]} 24. Qxd7 {[%clk 0:01:52.4]} 24... Qf2+ {[%clk 0:00:52.2]} 25. Kh1
{[%clk 0:01:49.7]} 25... Qxh4+ {[%clk 0:00:48.2]} 26. Kg1 {[%clk 0:01:48.3]}
26... Qf2+ {[%clk 0:00:48.4]} 27. Kh1 {[%clk 0:01:40.5]} 27... Qh4+ {[%clk
0:00:40.5]} 28. Kg1 {[%clk 0:01:40.4]} 28... Qf2+ {[%clk 0:00:40.4]} 29. Kh1
{[%clk 0:01:40.6]} 29... Qh4+ {[%clk 0:00:40.6]} 1/2-1/2

[Event "*** SCC Grand Prix: Titled Tuesday Blitz"]
[Site "Chess.com"]
[Date "2020.07.07"]
[Round "4"]
[White "Karina_Ivanova"]
[Black "Usurpov"]
[Result "1-0"]
[WhiteElo "2230"]
[BlackElo "2395"]
[TimeControl "180+1"]
[EndTime "10:37:42 PDT"]
[Termination "Karina_Ivanova won by resignation"]

1. d4 {[%clk 0:02:42.4]} 1... Nf6 {[%clk 0:02:59.6]} 2. c4 {[%clk 0:02:42.3]}
2... g6 {[%clk 0:03:00.1]} 3. Nf3 {[%clk 0:02:42]} 3... Bg7 {[%clk 0:02:59.7]}
4. g3 {[%clk 0:02:42.5]} 4... O-O {[%clk 0:02:59]} 5. Bg2 {[%clk 0:02:42.7]}
5... d5 {[%clk 0:02:59.3]} 6. O-O {[%clk 0:02:43.6]} 6... dxc4 {[%clk
0:02:59.1]} 7. Na3 {[%clk 0:02:43.6]} 7... Nc6 {[%clk 0:02:59.4]} 8. Nxc4 {[%clk
0:02:43.6]} 8... Be6 {[%clk 0:03:00]} 9. b3 {[%clk 0:02:43.5]} 9... Bd5 {[%clk
0:03:00.5]} 10. Bb2 {[%clk 0:02:42.7]} 10... a5 {[%clk 0:03:01.1]} 11. a4 {[%clk
0:02:41.8]} 11... Nb4 {[%clk 0:02:59.2]} 12. Rc1 {[%clk 0:02:40]} 12... c6
{[%clk 0:02:58.1]} 13. Nfd2 {[%clk 0:02:31.9]} 13... b5 {[%clk 0:02:41.8]} 14.
axb5 {[%clk 0:02:29.4]} 14... cxb5 {[%clk 0:02:40.6]} 15. Ne5 {[%clk 0:02:26.7]}
15... Bxg2 {[%clk 0:02:36.5]} 16. Kxg2 {[%clk 0:02:26.3]} 16... Qb6 {[%clk
0:02:21.9]} 17. e4 {[%clk 0:02:21.7]} 17... Rfd8 {[%clk 0:02:13.7]} 18. Qe2
{[%clk 0:02:16.3]} 18... Nd7 {[%clk 0:02:07.6]} 19. Nxd7 {[%clk 0:02:13.2]}
19... Rxd7 {[%clk 0:02:08.5]} 20. Nf3 {[%clk 0:02:04.8]} 20... a4 {[%clk
0:02:02.6]} 21. bxa4 {[%clk 0:02:03.2]} 21... Rxa4 {[%clk 0:01:52]} 22. Ra1
{[%clk 0:02:02.5]} 22... e6 {[%clk 0:01:40.9]} 23. Rxa4 {[%clk 0:01:59.1]} 23...
bxa4 {[%clk 0:01:41.8]} 24. Ra1 {[%clk 0:01:59.2]} 24... Qc6 {[%clk 0:01:29.2]}
25. d5 {[%clk 0:01:50.6]} 25... exd5 {[%clk 0:01:26.6]} 26. Bxg7 {[%clk
0:01:49.6]} 26... Kxg7 {[%clk 0:01:18.2]} 27. Qb2+ {[%clk 0:01:48.6]} 27... Qf6
{[%clk 0:01:14.2]} 28. e5 {[%clk 0:01:37.9]} 1-0

[Event "*** SCC Grand Prix: Titled Tuesday Blitz"]
[Site "Chess.com"]
[Date "2020.07.07"]
[Round "4"]
[White "Roman_Ovetchkin"]
[Black "tk22h"]
[Result "1-0"]
[WhiteElo "2581"]
[BlackElo "2285"]
[TimeControl "180+1"]
[EndTime "10:37:48 PDT"]
[Termination "Roman_Ovetchkin won by resignation"]

1. d4 {[%clk 0:03:00.9]} 1... Nf6 {[%clk 0:02:59.3]} 2. c4 {[%clk 0:03:00.4]}
2... g6 {[%clk 0:02:59.4]} 3. Nc3 {[%clk 0:02:59.2]} 3... d5 {[%clk 0:02:59.3]}
4. cxd5 {[%clk 0:02:56.9]} 4... Nxd5 {[%clk 0:02:59.4]} 5. e4 {[%clk 0:02:56.4]}
5... Nxc3 {[%clk 0:02:59.5]} 6. bxc3 {[%clk 0:02:57.3]} 6... Bg7 {[%clk
0:02:59.8]} 7. Bc4 {[%clk 0:02:57.7]} 7... O-O {[%clk 0:02:58.3]} 8. Ne2 {[%clk
0:02:58.2]} 8... c5 {[%clk 0:02:58.8]} 9. Be3 {[%clk 0:02:56.8]} 9... Nc6 {[%clk
0:02:58.9]} 10. h4 {[%clk 0:02:55.1]} 10... h5 {[%clk 0:02:56.9]} 11. O-O {[%clk
0:02:51.6]} 11... e6 {[%clk 0:02:50.2]} 12. Bg5 {[%clk 0:02:48.2]} 12... Qb6
{[%clk 0:02:48.9]} 13. Rb1 {[%clk 0:02:46.7]} 13... Qc7 {[%clk 0:02:46.3]} 14.
Rc1 {[%clk 0:02:41.1]} 14... b6 {[%clk 0:02:43.8]} 15. e5 {[%clk 0:02:35.2]}
15... Bb7 {[%clk 0:02:42.3]} 16. Qd2 {[%clk 0:02:35]} 16... Ne7 {[%clk
0:02:38.7]} 17. Bh6 {[%clk 0:02:25.6]} 17... Nf5 {[%clk 0:02:33.9]} 18. Bxg7
{[%clk 0:02:25]} 18... Kxg7 {[%clk 0:02:33.2]} 19. Qf4 {[%clk 0:02:23.7]} 19...
Qe7 {[%clk 0:02:32.1]} 20. g3 {[%clk 0:02:20.9]} 20... Rad8 {[%clk 0:02:29.4]}
21. Bd3 {[%clk 0:02:16.8]} 21... Qd7 {[%clk 0:02:26.5]} 22. Bxf5 {[%clk
0:02:10.9]} 22... exf5 {[%clk 0:02:25.9]} 23. Qg5 {[%clk 0:02:06.8]} 23... Qd5
{[%clk 0:02:21.2]} 24. f3 {[%clk 0:02:06.5]} 24... Ba6 {[%clk 0:02:19.7]} 25.
Nf4 {[%clk 0:02:04.9]} 25... Qc6 {[%clk 0:02:11.1]} 26. d5 {[%clk 0:01:56]}
26... Rxd5 {[%clk 0:02:10.1]} 27. Nxh5+ {[%clk 0:01:49.2]} 27... Kh7 {[%clk
0:02:09]} 28. Nf6+ {[%clk 0:01:49]} 28... Kg7 {[%clk 0:02:08.6]} 29. Nxd5 {[%clk
0:01:37.5]} 29... Qxd5 {[%clk 0:02:08.5]} 30. Qf6+ {[%clk 0:01:37.6]} 30... Kg8
{[%clk 0:02:08]} 31. Rf2 {[%clk 0:01:37.7]} 31... Bc4 {[%clk 0:02:02.3]} 32. h5
{[%clk 0:01:35.9]} 32... Qe6 {[%clk 0:02:01.3]} 33. Qxe6 {[%clk 0:01:31.3]}
33... Bxe6 {[%clk 0:02:00]} 34. hxg6 {[%clk 0:01:31.6]} 34... fxg6 {[%clk
0:02:00.5]} 35. Rd1 {[%clk 0:01:31.9]} 35... Kf7 {[%clk 0:02:00.5]} 36. a3
{[%clk 0:01:29]} 36... Rc8 {[%clk 0:01:58.3]} 37. Rh2 {[%clk 0:01:28.2]} 37...
Kg7 {[%clk 0:01:57.6]} 38. Rd6 {[%clk 0:01:28.7]} 38... Re8 {[%clk 0:01:53.9]}
39. Kf2 {[%clk 0:01:27.8]} 39... g5 {[%clk 0:01:53.5]} 40. f4 {[%clk 0:01:26.7]}
40... g4 {[%clk 0:01:51.8]} 41. Ke3 {[%clk 0:01:26.5]} 41... Re7 {[%clk
0:01:49.7]} 42. Rh5 {[%clk 0:01:24.1]} 42... Re8 {[%clk 0:01:49.3]} 43. Rd1
{[%clk 0:01:18.7]} 43... Re7 {[%clk 0:01:48.1]} 44. Rdh1 {[%clk 0:01:15.1]}
44... Kg8 {[%clk 0:01:43.5]} 45. Rh8+ {[%clk 0:01:13.3]} 45... Kf7 {[%clk
0:01:43.5]} 46. R1h7+ {[%clk 0:01:12.2]} 1-0

[Event "*** SCC Grand Prix: Titled Tuesday Blitz"]
[Site "Chess.com"]
[Date "2020.07.07"]
[Round "4"]
[White "12teen"]
[Black "Brave_spirit12"]
[Result "0-1"]
[WhiteElo "2622"]
[BlackElo "2452"]
[TimeControl "180+1"]
[EndTime "10:37:52 PDT"]
[Termination "Brave_spirit12 won by resignation"]

1. g3 {[%clk 0:03:00.9]} 1... f5 {[%clk 0:02:57]} 2. Bg2 {[%clk 0:03:01.8]} 2...
Nf6 {[%clk 0:02:57.4]} 3. d3 {[%clk 0:03:01.6]} 3... g6 {[%clk 0:02:57.8]} 4.
Nc3 {[%clk 0:03:00.5]} 4... Bg7 {[%clk 0:02:58.3]} 5. e4 {[%clk 0:03:00]} 5...
O-O {[%clk 0:02:59.2]} 6. f4 {[%clk 0:02:59.6]} 6... d6 {[%clk 0:02:58.4]} 7.
Nf3 {[%clk 0:02:59.3]} 7... Nc6 {[%clk 0:02:58]} 8. Be3 {[%clk 0:02:57.1]} 8...
e5 {[%clk 0:02:57.8]} 9. Qd2 {[%clk 0:02:55]} 9... a6 {[%clk 0:02:55.1]} 10.
O-O-O {[%clk 0:02:35.1]} 10... b5 {[%clk 0:02:53.5]} 11. exf5 {[%clk 0:02:31.6]}
11... Bxf5 {[%clk 0:02:51.2]} 12. Nxe5 {[%clk 0:02:25.4]} 12... dxe5 {[%clk
0:01:58.3]} 13. Bxc6 {[%clk 0:02:22.6]} 13... exf4 {[%clk 0:01:54.9]} 14. Bc5
{[%clk 0:02:14.3]} 14... b4 {[%clk 0:01:29.2]} 15. Bxb4 {[%clk 0:02:03.2]} 15...
Rb8 {[%clk 0:01:26.8]} 16. Bxf8 {[%clk 0:02:02.3]} 16... Qxf8 {[%clk 0:01:27.7]}
17. Ba4 {[%clk 0:01:54.1]} 17... f3 {[%clk 0:01:16.7]} 18. Bb3+ {[%clk
0:01:52.8]} 18... Kh8 {[%clk 0:01:16.5]} 19. h3 {[%clk 0:01:51]} 19... Bh6
{[%clk 0:01:16.2]} 20. g4 {[%clk 0:01:42.1]} 20... Bxd2+ {[%clk 0:01:15.4]} 21.
Rxd2 {[%clk 0:01:43]} 21... Bd7 {[%clk 0:01:13.6]} 22. Rf2 {[%clk 0:01:39.8]}
22... Bc6 {[%clk 0:01:10.6]} 23. d4 {[%clk 0:01:30.4]} 23... Qd6 {[%clk
0:01:04.9]} 24. Rd1 {[%clk 0:01:22.3]} 24... Qf4+ {[%clk 0:01:00.3]} 25. Rdd2
{[%clk 0:01:22.1]} 25... Ne4 {[%clk 0:00:54.5]} 26. Nxe4 {[%clk 0:01:21.1]}
26... Bxe4 {[%clk 0:00:55.4]} 27. d5 {[%clk 0:01:15.6]} 27... Qe3 {[%clk
0:00:54.6]} 28. c3 {[%clk 0:01:12.3]} 28... Rxb3 {[%clk 0:00:51.9]} 0-1

[Event "*** SCC Grand Prix: Titled Tuesday Blitz"]
[Site "Chess.com"]
[Date "2020.07.07"]
[Round "4"]
[White "JiiHart"]
[Black "gagtemp"]
[Result "1/2-1/2"]
[WhiteElo "2130"]
[BlackElo "1883"]
[TimeControl "180+1"]
[EndTime "10:37:53 PDT"]
[Termination "Game drawn by repetition"]

1. e4 {[%clk 0:03:00.9]} 1... d5 {[%clk 0:02:59.4]} 2. exd5 {[%clk 0:03:00.3]}
2... Qxd5 {[%clk 0:03:00.3]} 3. Nc3 {[%clk 0:03:00.2]} 3... Qd6 {[%clk
0:03:00.3]} 4. d4 {[%clk 0:02:59.7]} 4... Nf6 {[%clk 0:03:00.1]} 5. Bc4 {[%clk
0:02:56.1]} 5... a6 {[%clk 0:02:58]} 6. a3 {[%clk 0:02:52.9]} 6... Qc6 {[%clk
0:02:53.1]} 7. Bf1 {[%clk 0:02:37.5]} 7... e6 {[%clk 0:02:48.3]} 8. Nf3 {[%clk
0:02:36.3]} 8... b5 {[%clk 0:02:40.4]} 9. Bd3 {[%clk 0:02:30.1]} 9... Bd6 {[%clk
0:02:36.6]} 10. O-O {[%clk 0:02:24.7]} 10... O-O {[%clk 0:02:34.6]} 11. Re1
{[%clk 0:02:08.6]} 11... Qb6 {[%clk 0:02:34.3]} 12. b4 {[%clk 0:01:47.5]} 12...
Bb7 {[%clk 0:02:27.4]} 13. Be3 {[%clk 0:01:45.9]} 13... Nd5 {[%clk 0:02:19.1]}
14. Nxd5 {[%clk 0:01:25.1]} 14... Bxd5 {[%clk 0:02:18]} 15. Bxh7+ {[%clk
0:01:24.6]} 15... Kxh7 {[%clk 0:02:06.3]} 16. Ng5+ {[%clk 0:01:24.3]} 16... Kg6
{[%clk 0:02:06.2]} 17. Qg4 {[%clk 0:01:11.4]} 17... Kf6 {[%clk 0:01:25.1]} 18.
Qh4 {[%clk 0:01:03.5]} 18... Kg6 {[%clk 0:01:18.5]} 19. Qg4 {[%clk 0:00:31.2]}
19... Kf6 {[%clk 0:01:17.7]} 20. Qh4 {[%clk 0:00:30.7]} 20... Kg6 {[%clk
0:01:17]} 21. Qg4 {[%clk 0:00:30.6]} 1/2-1/2